bitfinex/quotes_ETHUSD_20241130
["timestamp","ask_amount","ask_price","bid_price","bid_amount"]
[1732963688936,0.65112174,3655.3,3654.6,2.73621]
[1732963689179,0.65112174,3655.2,3654.6,2.73621]
[1732963689379,0.25038123,3655.1,3654.6,2.73621]
[1732963689675,0.25038123,3655.0,3654.6,2.73621]
[1732963689878,1.05888123,3654.9,3654.3,0.08436058]
[1732963690031,0.25038123,3654.8,3654.3,0.08436058]
[1732963690238,0.28458403,3654.7,3654.3,0.08436058]
[1732963690486,1.05888123,3654.6,3654.3,0.08436058]
[1732963690648,4.30794836,3654.5,3654.3,0.08436058]
[1732963690835,0.65095162,3654.4,3654.3,0.08436058]
[1732963691178,0.25038123,3654.4,3654.3,0.08436058]
[1732963692538,0.8099,3655.0,3654.3,2.82086058]
[1732963692734,0.25004417,3654.9,3654.5,2.73632]
[1732963692974,0.25004417,3654.8,3654.5,2.73632]
[1732963693236,0.8099,3655.0,3654.3,2.82086058]
[1732963693237,0.24999436,3654.7,3654.3,2.82086058]
[1732963693470,1.20997067,3655.0,3654.4,2.73641]
[1732963693680,0.24996978,3654.9,3654.7,2.73613]
[1732963693836,8.14776286,3655.7,3654.6,2.73627]
[1732963694178,0.64994993,3655.6,3655.1,2.73589]
[1732963694382,8.14776286,3655.7,3655.1,2.73588]
[1732963694536,0.24999445,3655.6,3655.1,5.47171]
[1732963694737,9.04352915,3655.7,3655.1,2.73583]
[1732963694738,0.24999445,3655.5,3655.1,2.73583]
[1732963694938,0.24999445,3655.4,3655.3,2.73575]
[1732963695171,9.04352915,3655.7,3654.7,0.774]
[1732963695172,0.03419672,3655.6,3655.1,2.73586]
[1732963695483,0.24998898,3655.5,3654.6,2.73627]
[1732963695678,0.24998898,3655.4,3654.9,2.73605]
[1732963695884,1.12976136,3655.4,3654.9,2.73605]
[1732963696183,0.24998898,3655.3,3654.8,2.73612]
[1732963696352,0.24998898,3655.2,3654.8,2.73612]
[1732963696672,0.24998898,3655.1,3654.8,2.73612]
[1732963696881,0.24996002,3655.3,3654.8,2.73612]
[1732963697081,8.14776286,3655.2,3655.0,2.73591]
[1732963697384,0.8099,3655.0,3654.4,2.73641]
[1732963697562,0.28412426,3654.9,3654.3,0.08436058]
[1732963697765,0.24991841,3654.8,3654.3,0.08436058]
[1732963697972,0.24991841,3654.7,3654.3,0.08436058]
[1732963698139,0.24991841,3654.8,3654.3,0.08436058]
[1732963698336,0.24991841,3654.9,3654.3,0.08436058]
[1732963698550,0.24991841,3654.8,3654.3,0.08436058]
[1732963698849,0.28412627,3654.8,3654.3,2.82085058]
[1732963699075,0.24986376,3654.8,3654.3,2.82083058]
[1732963699276,0.24986376,3654.9,3654.3,0.08436058]
[1732963699492,2.98593376,3654.9,3654.3,0.08436058]
[1732963699692,1.44764413,3654.8,3654.3,0.08436058]
[1732963699970,1.19778037,3654.8,3654.3,0.08436058]
[1732963700601,8.14776286,3654.7,3654.3,0.08436058]
[1732963700763,8.14776286,3654.7,3654.4,2.73642]
[1732963702609,8.14776286,3654.7,3654.3,0.08436058]
[1732963702813,9.04352915,3654.7,3654.3,0.08436058]
[1732963703262,9.04352915,3654.7,3654.3,2.82085058]
[1732963703461,9.04352915,3654.7,3654.3,0.08436058]
[1732963703666,2.77047634,3654.6,3654.3,0.08436058]
[1732963703876,0.03420634,3654.6,3654.3,0.08436058]
[1732963704183,0.61549645,3654.6,3654.3,0.08436058]
[1732963704383,8.14776286,3654.7,3654.3,2.82084058]
[1732963704584,8.14776286,3654.7,3654.4,2.73642]
[1732963704901,8.14776286,3654.7,3654.3,0.08436058]
[1732963706204,8.14776286,3654.6,3654.3,0.08436058]
[1732963706603,8.14776286,3654.6,3654.3,2.82085058]
[1732963708537,11.69886915,3654.6,3654.3,0.08436058]
[1732963708842,10.88413286,3654.5,3654.3,0.08436058]
[1732963709196,3.56922,3654.4,3654.3,0.08436058]
[1732963709396,2.7365,3654.3,3654.1,0.0023899]
[1732963710010,0.81477629,3654.6,3654.1,0.0023899]
[1732963710217,2.73649,3654.4,3654.1,0.0023899]
[1732963710545,2.73654,3654.3,3654.1,0.0023899]
[1732963710703,3.56915,3654.5,3654.1,0.0023899]
[1732963710704,3.56916,3654.5,3654.1,0.0023899]
[1732963711103,2.73657,3654.2,3654.1,0.0023899]
[1732963711829,8.14776286,3654.4,3654.1,0.0023899]
[1732963711830,2.73651,3654.3,3654.1,0.0023899]
[1732963712535,8.14776286,3654.4,3654.1,0.0023899]
[1732963712707,8.14776286,3654.4,3654.2,2.73651]
[1732963712916,8.14776286,3654.4,3654.3,2.7365]
[1732963713810,8.14776286,3654.4,3654.1,2.7389699]
[1732963714461,8.14776286,3654.4,3654.2,2.73656]
[1732963714773,0.7989,3654.3,3654.1,2.7390099]
[1732963715236,8.53403912,3654.7,3654.1,0.0023899]
[1732963715439,0.7989,3654.8,3654.1,0.0023899]
[1732963715752,0.25038456,3654.7,3654.5,2.73629]
[1732963715942,0.25038456,3654.6,3654.3,2.73648]
[1732963716133,0.7989,3654.8,3654.5,2.73635]
[1732963716336,0.25041075,3654.7,3654.6,2.73626]
[1732963716574,0.7989,3654.8,3654.3,2.73648]
[1732963716952,0.25042592,3654.7,3654.2,2.73657]
[1732963717157,0.25042592,3654.7,3654.4,2.73636]
[1732963717356,0.25042385,3654.7,3654.4,2.73636]
[1732963717558,0.25042385,3654.7,3654.1,0.0023899]
[1732963717774,0.25042385,3654.7,3654.6,2.73627]
[1732963717991,0.25042385,3655.0,3654.2,2.73657]
[1732963718195,0.25042385,3655.1,3654.9,2.73605]
[1732963718414,0.25042385,3655.4,3655.3,2.73575]
[1732963718564,0.25055407,3655.4,3655.3,2.73575]
[1732963718762,8.54864938,3655.6,3654.8,0.8179]
[1732963718763,8.14776286,3655.6,3654.8,0.8179]
[1732963718958,8.14776286,3655.6,3655.4,2.73565]
[1732963719284,0.25057114,3655.5,3655.2,2.73575]
[1732963719493,0.25057114,3655.5,3655.1,2.73587]
[1732963719655,0.25057114,3655.5,3654.4,2.73637]
[1732963719656,0.25057114,3655.5,3655.3,2.73575]
[1732963719860,0.25057114,3655.4,3655.3,2.73575]
[1732963720159,8.14776286,3655.6,3655.2,2.73582]
[1732963720362,0.25057591,3655.5,3655.2,2.73582]
[1732963720804,0.25057591,3655.5,3654.7,2.73619]
[1732963721096,8.14776286,3655.6,3655.5,2.7356]
[1732963721300,8.14776286,3655.6,3655.3,2.73569]
[1732963721504,8.14776286,3655.6,3655.4,2.73562]
[1732963721800,8.14776286,3655.6,3655.5,2.7356]
[1732963722001,8.14776286,3655.6,3655.4,2.73562]
[1732963722206,8.14776286,3655.6,3655.5,2.7356]
[1732963722691,8.14776286,3655.6,3655.3,0.8179]
[1732963722898,8.14776286,3655.6,3655.5,2.7356]
[1732963724113,8.14776286,3656.0,3655.8,2.73534]
[1732963724257,0.7989,3656.4,3656.0,2.7352]
[1732963724461,0.25038934,3656.3,3656.0,2.7352]
[1732963724685,8.14776286,3656.3,3656.0,2.7352]
[1732963725005,8.14776286,3656.3,3656.2,2.73508]
[1732963725186,8.14776286,3656.3,3656.0,2.73519]
[1732963725418,8.14776286,3656.3,3656.2,2.73508]
[1732963726032,2.73435,3657.2,3656.1,0.8179]
[1732963726033,8.14776286,3657.2,3656.1,0.8179]
[1732963726329,8.14776286,3657.5,3656.2,2.73508]
[1732963726549,8.14776286,3657.5,3657.2,2.73429]
[1732963726830,0.54960034,3657.7,3657.4,2.7341]
[1732963726990,0.54960034,3657.7,3657.6,2.73403]
[1732963727190,8.42113886,3657.9,3657.7,2.73391]
[1732963727428,8.42113886,3657.9,3657.8,2.73388]
[1732963727642,8.42113886,3657.9,3657.6,2.73401]
[1732963728388,8.42113886,3657.9,3657.6,2.73396]
[1732963728833,8.14776286,3657.9,3657.8,2.73388]
[1732963729222,8.14776286,3657.9,3657.7,0.7778]
[1732963729223,8.14776286,3657.9,3657.7,3.51172]
[1732963729421,8.14776286,3657.9,3657.8,2.73388]
[1732963729734,8.14776286,3658.6,3658.5,2.73336]
[1732963730105,8.14776286,3659.2,3658.5,0.7778]
[1732963730429,8.14776286,3659.1,3658.7,2.73321]
[1732963730791,8.14776286,3659.1,3658.8,2.73313]
[1732963730991,8.69861008,3659.5,3658.9,2.73299]
[1732963731231,8.69861008,3659.5,3658.7,2.73314]
[1732963731438,8.69861008,3659.5,3658.5,3.51108]
[1732963731637,0.03416269,3659.4,3658.8,2.73308]
[1732963732132,12.65681109,3659.5,3658.6,2.73322]
[1732963732434,12.65681109,3659.5,3658.5,0.7778]
[1732963732435,0.55,3659.3,3658.5,0.7778]
[1732963732591,0.03354835,3659.2,3658.5,0.7778]
[1732963732943,0.55,3659.4,3658.6,2.73322]
[1732963733108,0.28569173,3659.3,3658.6,2.73322]
[1732963733318,8.69861008,3659.5,3658.9,2.73299]
[1732963733517,8.69861008,3659.5,3658.2,0.8174]
[1732963733731,8.69861008,3659.5,3659.0,2.73297]
[1732963734044,2.73276,3659.3,3658.6,2.73323]
[1732963734198,2.73276,3659.3,3658.4,2.73343]
[1732963734199,0.03416315,3659.2,3658.4,2.73343]
[1732963734602,0.03416315,3659.2,3658.6,2.73322]
[1732963734817,0.58416407,3659.3,3658.6,2.73322]
[1732963735018,3.31699407,3659.3,3658.4,2.73343]
[1732963735224,0.03416409,3659.3,3658.4,2.73343]
[1732963735423,0.03416409,3659.3,3658.2,0.8174]
[1732963735606,0.03416064,3659.4,3658.6,2.73322]
[1732963735811,10.88038286,3659.5,3658.6,2.73321]
[1732963736043,10.88038286,3659.5,3658.7,2.7332]
[1732963736250,2.73246,3659.7,3658.7,2.7332]
[1732963736251,10.88045286,3659.4,3658.7,2.7332]
[1732963736421,8.14776286,3659.4,3658.6,2.73328]
[1732963736672,8.14776286,3659.4,3658.9,2.73304]
[1732963736831,8.14776286,3659.4,3658.2,0.8174]
[1732963736832,8.14776286,3659.4,3659.1,2.73288]
[1732963737030,8.14776286,3659.4,3658.9,2.73303]
[1732963737540,8.14776286,3659.4,3658.2,0.8174]
[1732963737541,8.14776286,3659.4,3659.0,2.73297]
[1732963738101,8.14776286,3659.4,3658.9,0.8174]
[1732963738298,8.14776286,3659.4,3659.1,2.73289]
[1732963738503,8.14776286,3659.4,3658.9,3.55044]
[1732963738755,8.14776286,3659.4,3659.0,2.73295]
[1732963739054,2.73398,3657.7,3656.2,3.55242]
[1732963739254,8.14776286,3657.7,3657.2,2.73432]
[1732963739746,8.14776286,3657.7,3657.6,2.73403]
[1732963740241,2.73313,3658.8,3657.2,0.8174]
[1732963740242,8.14776286,3658.4,3658.0,2.73371]
[1732963740445,8.14776286,3658.4,3657.2,0.8174]
[1732963740446,10.88125286,3658.4,3657.4,2.73411]
[1732963740653,8.14776286,3658.4,3657.8,2.73387]
[1732963740810,8.14776286,3658.4,3657.5,2.7341]
[1732963741009,8.14776286,3658.4,3658.1,2.73363]
[1732963741205,8.14776286,3658.7,3658.2,2.73356]
[1732963741544,8.14776286,3658.7,3658.1,2.73363]
[1732963741545,8.14776286,3658.7,3658.3,2.73349]
[1732963741709,8.14776286,3658.7,3658.1,2.73363]
[1732963741917,8.14776286,3658.7,3658.5,2.73335]
[1732963742130,0.55,3658.6,3657.4,0.355151]
[1732963742456,0.55,3658.4,3657.4,0.8174]
[1732963742744,0.5841726,3658.4,3657.9,2.7338]
[1732963742959,0.5841726,3658.4,3657.8,2.73387]
[1732963742960,0.55,3658.4,3657.8,2.73387]
[1732963743256,0.55,3658.4,3658.1,2.73363]
[1732963743457,0.55,3658.7,3658.1,2.73363]
[1732963743744,1.63802429,3658.7,3658.1,2.73363]
[1732963743952,2.76750897,3658.6,3657.9,2.73377]
[1732963744124,0.55,3658.5,3657.9,2.73377]
[1732963744734,8.14776286,3658.4,3657.4,0.8174]
[1732963744909,0.55,3658.2,3657.8,2.73381]
[1732963745111,0.55,3658.2,3657.9,2.73379]
[1732963745353,0.8168,3658.2,3657.1,2.73435]
[1732963745533,0.55,3658.1,3657.7,2.73389]
[1732963745735,0.55,3658.1,3657.8,2.73388]
[1732963746040,0.55,3658.1,3657.5,2.7341]
[1732963746356,0.55,3658.1,3657.7,2.7339]
[1732963746540,0.55,3658.2,3657.7,2.73395]
[1732963746740,0.55,3658.4,3657.7,2.73395]
[1732963746923,0.55,3658.4,3657.3,2.73425]
[1732963747114,0.55,3658.5,3658.2,2.73357]
[1732963747306,3.54991,3658.9,3658.2,2.73357]
[1732963747307,0.55,3658.7,3658.2,2.73357]
[1732963747512,8.69776286,3658.7,3658.1,2.73363]
[1732963748316,2.73331,3658.6,3657.9,2.73379]
[1732963748519,0.55,3658.5,3658.0,2.73372]
[1732963748830,0.55,3658.5,3657.9,2.73376]
[1732963749354,0.58416894,3658.5,3657.9,2.73373]
[1732963749555,0.58416894,3658.5,3657.7,2.73393]
[1732963749728,0.58416894,3658.5,3658.0,2.73372]
[1732963749929,0.55,3658.6,3658.0,2.73372]
[1732963750352,0.55,3658.3,3657.4,0.8174]
[1732963750562,0.55,3657.7,3657.0,0.8174]
[1732963750868,0.55,3657.7,3657.3,2.73425]
[1732963751230,0.55,3657.8,3657.3,2.73425]
[1732963751531,0.55,3657.8,3657.4,2.73416]
[1732963751842,0.24905241,3657.7,3657.6,2.73399]
[1732963752046,0.55,3657.7,3657.0,0.8174]
[1732963752469,0.55,3657.8,3657.4,2.73416]
[1732963752769,0.41332022,3658.6,3657.6,3.52493]
[1732963752770,8.94636286,3658.6,3657.6,3.52493]
[1732963752970,9.48271604,3659.4,3658.9,2.733]
[1732963753155,8.39709126,3659.3,3658.9,2.733]
[1732963753368,0.64825384,3659.2,3658.9,2.733]
[1732963753546,0.64825384,3659.1,3658.9,2.733]
[1732963753868,0.64825384,3659.0,3658.9,2.733]
[1732963754069,0.64825384,3659.0,3658.1,0.7909]
[1732963754228,0.64825384,3658.9,3658.4,2.73343]
[1732963754546,0.2493284,3658.8,3658.4,2.71092054]
[1732963754750,0.2493284,3658.7,3658.3,2.73351]
[1732963755073,0.39892544,3659.0,3658.6,2.73326]
[1732963755233,0.64908458,3658.9,3658.6,2.73326]
[1732963755441,0.25015914,3658.8,3658.5,2.73335]
[1732963755645,0.25015914,3658.7,3658.5,2.73335]
[1732963755849,0.25015914,3658.6,3658.5,2.73335]
[1732963757188,0.55,3659.2,3658.9,2.73298]
[1732963757374,0.65109401,3659.1,3659.0,2.73297]
[1732963758273,0.65109401,3659.1,3658.9,2.73305]
[1732963758461,0.65109401,3659.1,3657.7,0.7909]
[1732963758462,11.08055121,3659.0,3657.7,0.7909]
[1732963758663,3.28326,3658.7,3657.9,2.73375]
[1732963758983,0.55,3658.5,3657.9,2.73375]
[1732963759223,0.55,3658.5,3657.7,3.52485]
[1732963759224,0.25044412,3658.4,3658.0,2.73372]
[1732963759485,0.55,3658.3,3658.0,2.73372]
[1732963759784,0.55,3658.1,3658.0,2.73372]
[1732963760088,0.55,3658.4,3658.0,2.73372]
[1732963760251,0.25046701,3658.3,3658.0,2.73372]
[1732963760586,0.55,3658.1,3658.0,2.73372]
[1732963760798,0.55,3658.4,3658.0,2.73372]
[1732963760982,0.25046729,3658.3,3658.0,2.73372]
[1732963761160,0.25046729,3658.2,3657.7,0.7909]
[1732963761491,0.40075863,3658.4,3658.0,2.73373]
[1732963761690,0.80048254,3658.3,3658.1,2.73365]
[1732963761853,0.25048254,3658.2,3658.1,2.73365]
[1732963762580,0.25051069,3658.2,3658.1,2.73365]
[1732963762754,0.55,3658.5,3658.4,2.73343]
[1732963762998,0.80050592,3658.5,3658.4,2.73343]
[1732963763200,0.25050592,3658.5,3658.2,2.73357]
[1732963763521,0.25050592,3658.5,3657.1,0.1]
[1732963763522,8.69776286,3656.3,3655.4,2.73563]
[1732963763742,2.73524,3656.0,3655.2,2.7358]
[1732963763897,11.43291286,3656.1,3654.9,2.73603]
[1732963764096,8.69776286,3656.1,3655.2,2.73575]
[1732963764413,0.55,3655.9,3655.4,2.73565]
[1732963764593,0.55,3655.7,3655.1,2.73586]
[1732963764940,0.25020755,3655.6,3655.4,2.73566]
[1732963765106,0.95034995,3656.0,3655.5,2.7356]
[1732963765310,0.55,3655.8,3655.3,3.52664]
[1732963765507,0.55,3655.6,3655.2,0.273586]
[1732963765708,0.55,3655.6,3655.2,3.009406]
[1732963765924,2.73643,3654.4,3654.1,0.0023899]
[1732963766140,0.0342069,3654.3,3654.1,0.0023899]
[1732963766343,0.55,3654.2,3654.1,0.0023899]
[1732963767323,8.14776286,3654.6,3654.1,0.0023899]
[1732963767324,0.55,3654.5,3654.1,0.0023899]
[1732963767510,0.79913432,3654.5,3654.1,0.0023899]
[1732963768130,0.55,3654.3,3654.1,0.0023899]
[1732963768336,0.55,3654.5,3654.1,0.0023899]
[1732963768540,0.55,3654.5,3654.1,0.27629989]
[1732963768938,8.14776286,3654.2,3654.1,0.0023899]
[1732963769266,8.69776286,3654.2,3654.1,0.0023899]
[1732963770206,12.65635211,3654.2,3654.1,0.0023899]
[1732963770556,13.03616013,3654.2,3654.1,0.0023899]
[1732963770929,13.28431573,3654.2,3654.1,0.0023899]
[1732963771113,13.03616013,3654.2,3654.1,0.0023899]
[1732963771312,3.28687,3653.8,3653.7,0.07729817]
[1732963771512,7.52067524,3653.8,3653.7,0.07729817]
[1732963771713,7.48645074,3653.8,3653.7,0.07729817]
[1732963771958,7.7341411,3653.8,3653.7,0.07729817]
[1732963772164,7.08315,3653.3,3653.2,0.03]
[1732963772368,2.76551491,3653.3,3653.2,0.03]
[1732963772513,1.3459,3653.3,3653.2,0.03]
[1732963773563,0.55,3653.3,3653.2,0.03]
[1732963773767,3.32128886,3653.6,3653.2,0.03]
[1732963773919,0.55,3653.6,3653.2,0.03]
[1732963774534,8.14537296,3653.7,3653.2,0.03]
[1732963774717,8.14537296,3653.7,3653.6,2.73702]
[1732963774921,8.14537296,3653.7,3653.2,0.03]
[1732963775155,8.14537296,3653.7,3653.4,2.73714]
[1732963775667,8.14537296,3653.7,3653.2,0.03]
[1732963775814,8.14537296,3653.7,3653.6,2.73702]
[1732963776656,8.14537296,3654.2,3654.1,2.73665]
[1732963776859,8.14537296,3654.1,3653.8,2.73684]
[1732963777056,8.14537296,3654.1,3653.3,2.73725]
[1732963777261,8.14537296,3654.5,3654.1,2.73665]
[1732963777466,0.7959,3655.3,3653.8,0.7961]
[1732963777621,8.14537296,3655.2,3654.9,2.73598]
[1732963778147,8.14537296,3655.2,3655.1,2.7359]
[1732963781363,8.14537296,3655.8,3655.7,2.73545]
[1732963781575,8.69537296,3655.8,3655.7,2.73545]
[1732963781928,8.14537296,3655.8,3655.7,2.73545]
[1732963782667,8.14537296,3656.3,3656.1,2.73513]
[1732963783170,8.14537296,3656.3,3656.0,2.73522]
[1732963783371,8.14537296,3656.3,3655.8,2.73534]
[1732963783665,0.03419166,3656.2,3655.7,2.73542]
[1732963783879,0.55,3656.1,3655.7,2.73542]
[1732963784173,0.55,3656.2,3655.9,2.73529]
[1732963784331,0.55,3656.2,3655.8,2.73535]
[1732963784841,0.55,3656.2,3655.9,2.73528]
[1732963785042,0.55,3656.2,3656.1,2.73515]
[1732963785968,8.69537296,3656.2,3656.1,2.73515]
[1732963786666,8.69537296,3656.2,3655.9,2.73527]
[1732963786667,8.69537296,3656.2,3656.0,2.73521]
[1732963786878,8.69537296,3656.2,3656.1,2.73515]
[1732963790073,0.55,3656.2,3656.1,2.73515]
[1732963790274,12.51,3657.6,3656.7,2.7347]
[1732963790581,0.24831302,3657.5,3656.7,2.7347]
[1732963790744,12.51,3657.6,3655.9,0.7961]
[1732963790745,8.98,3657.4,3656.0,5.47044]
[1732963790958,8.98,3657.5,3657.3,2.73425]
[1732963791242,8.98,3657.5,3657.4,2.73418]
[1732963792074,8.98,3658.0,3657.7,2.73394]
[1732963792277,8.98,3658.0,3657.8,2.73386]
[1732963792932,8.98,3658.0,3657.9,2.7338]
[1732963793273,8.98,3658.5,3657.2,2.73432]
[1732963793431,8.98,3658.3,3658.0,2.73365]
[1732963793633,8.98,3658.3,3658.1,2.73361]
[1732963793861,0.97962,3658.4,3657.1,3.50879]
[1732963794032,0.97962,3658.4,3658.2,2.73356]
[1732963794033,9.95962,3658.4,3658.2,2.73356]
[1732963794650,9.95962,3658.4,3658.3,2.73351]
[1732963795092,9.95962,3658.4,3658.1,2.73363]
[1732963795255,0.55,3658.3,3658.1,2.73363]
[1732963796598,0.55,3658.3,3658.2,2.73358]
[1732963802206,8.98,3659.0,3658.1,0.7744]
[1732963802410,8.98,3659.6,3658.1,3.61149781]
[1732963802622,8.98,3659.9,3659.4,2.73263]
[1732963803711,0.55,3659.6,3659.2,2.73277]
[1732963803907,0.55,3659.6,3659.3,2.73274]
[1732963804293,0.55,3659.8,3659.3,2.73274]
[1732963804520,0.55,3659.1,3658.3,2.73345]
[1732963804863,0.55,3659.1,3658.1,0.7744]
[1732963805061,0.55,3659.2,3659.1,2.73291]
[1732963805213,8.98,3659.3,3659.2,2.73283]
[1732963805952,8.98,3659.3,3659.0,2.73291]
[1732963806255,9.45664274,3659.3,3658.9,2.73303]
[1732963806407,0.55,3659.2,3658.9,2.73303]
[1732963806965,0.55,3659.2,3658.2,3.7744]
[1732963807133,0.55,3659.2,3658.8,2.73312]
[1732963807343,0.55,3659.2,3658.9,2.73298]
[1732963807861,10.7492,3659.1,3657.7,2.48628681]
[1732963808060,2.73357,3658.3,3657.5,0.7744]
[1732963808276,0.55,3657.6,3657.1,0.7744]
[1732963808432,0.55,3657.6,3656.9,2.73448]
[1732963808623,0.55,3657.6,3656.3,2.73498]
[1732963808624,0.55,3657.6,3656.4,2.73486]
[1732963808819,3.28427,3657.3,3656.5,2.73483]
[1732963809059,0.55,3657.0,3656.0,2.73522]
[1732963809254,0.55,3657.0,3656.6,2.73476]
[1732963809415,0.55,3657.1,3656.3,2.73495]
[1732963809620,0.55,3657.1,3655.7,2.7354]
[1732963809621,0.55,3656.4,3655.0,0.8304]
[1732963809922,3.28514,3656.2,3655.3,2.73569]
[1732963810121,0.55,3656.0,3655.8,2.7353]
[1732963810338,2.73463,3656.8,3655.0,0.8304]
[1732963810339,0.55,3656.1,3655.7,2.73544]
[1732963810548,0.55,3656.1,3655.8,2.73537]
[1732963810748,3.28493,3656.4,3655.5,2.73554]
[1732963811071,0.55,3656.0,3655.1,5.4718]
[1732963811235,0.55,3656.2,3655.6,2.73549]
[1732963811438,0.55,3656.0,3655.3,2.73572]
[1732963812182,0.55,3655.8,3654.0,0.8007]
[1732963812489,9.53,3655.6,3654.8,2.73606]
[1732963812851,9.53,3655.6,3655.0,2.73595]
[1732963813037,9.53,3655.4,3655.0,2.73593]
[1732963813239,9.53,3655.4,3655.0,2.73596]
[1732963813444,9.53,3655.4,3655.1,2.73588]
[1732963813859,9.53,3655.4,3655.3,2.73575]
[1732963814061,8.98,3656.1,3655.7,2.73541]
[1732963814259,8.98,3656.1,3655.5,2.7356]
[1732963814459,0.8154,3656.4,3654.5,3.53705]
[1732963814460,8.98,3656.3,3654.8,2.48628681]
[1732963814661,8.98,3656.8,3654.9,0.52225568]
[1732963814863,8.98,3656.6,3655.7,2.73539]
[1732963815064,8.98,3656.6,3655.6,0.8007]
[1732963815389,8.98,3656.9,3656.3,2.735]
[1732963815595,8.98,3656.9,3656.6,2.73477]
[1732963815890,8.98,3656.9,3656.8,2.73463]
[1732963816870,8.98,3656.9,3655.6,3.28698681]
[1732963817075,8.98,3657.4,3656.7,2.73468]
[1732963817589,11.71418,3657.4,3656.5,2.73483]
[1732963817775,2.73427,3657.3,3656.5,2.73483]
[1732963817976,0.55,3657.2,3656.5,2.73483]
[1732963818294,0.55,3656.8,3656.0,2.73518]
[1732963818592,0.55,3656.6,3655.6,0.8007]
[1732963818763,0.55,3656.6,3656.2,2.73505]
[1732963819159,0.55,3656.6,3655.6,0.8007]
[1732963819160,0.55,3656.6,3656.0,2.7352]
[1732963819369,0.55,3656.6,3656.1,2.73512]
[1732963819807,0.58418688,3656.6,3656.0,2.7352]
[1732963820002,1.06090962,3656.6,3656.0,2.7352]
[1732963820936,1.06090962,3656.6,3655.6,0.8007]
[1732963820937,0.55,3656.2,3655.6,2.73547]
[1732963822420,0.8154,3656.1,3655.6,2.73547]
[1732963822634,8.98,3655.7,3653.6,0.8007]
[1732963822840,0.55,3654.8,3654.0,2.73671]
[1732963822989,0.55,3654.8,3653.7,2.73695]
[1732963822990,0.55,3654.6,3653.7,2.73695]
[1732963823212,0.55,3654.7,3653.6,0.8007]
[1732963823415,9.56420539,3654.7,3654.0,2.73667]
[1732963823627,9.53,3654.7,3654.1,2.73663]
[1732963825114,9.53,3654.7,3653.6,0.8007]
[1732963825314,9.53,3654.7,3654.2,2.73651]
[1732963825738,12.26621,3654.7,3653.6,3.891488]
[1732963825929,3.28643,3654.4,3653.7,2.73692]
[1732963826125,0.55,3654.4,3653.8,2.73686]
[1732963826351,11.71621,3654.7,3653.9,2.73678]
[1732963826352,9.53,3654.6,3653.9,2.73678]
[1732963826558,9.53,3654.6,3653.6,2.73697]
[1732963826559,0.55,3654.4,3653.6,2.73697]
[1732963826714,1.3654,3654.4,3653.7,2.73693]
[1732963827121,0.55,3654.4,3653.4,2.73717]
[1732963827329,0.55,3654.4,3654.1,2.73663]
[1732963828118,0.55,3654.4,3653.4,2.73717]
[1732963828119,0.55,3654.4,3654.2,2.73655]
[1732963828771,0.55,3654.4,3654.3,2.7365]
[1732963828923,0.55,3654.4,3654.1,2.73664]
[1732963829462,0.55,3654.4,3653.9,2.73673]
[1732963829639,1.77662,3654.4,3653.6,2.73696]
[1732963829836,0.55,3654.0,3653.3,2.73725]
[1732963830068,0.55,3653.8,3653.4,2.73716]
[1732963830278,0.55,3653.8,3653.2,2.76728]
[1732963830561,0.55,3653.8,3653.2,0.03]
[1732963830722,0.55,3653.6,3653.2,0.03]
[1732963830920,0.58421492,3653.6,3653.2,0.03]
[1732963831226,0.55,3653.6,3653.2,0.03]
[1732963831567,0.55,3653.6,3653.2,2.76731]
[1732963831864,0.55,3653.6,3653.3,2.73724]
[1732963832181,0.55,3653.6,3653.3,0.0574096]
[1732963832528,0.55,3653.6,3653.5,2.7371]
[1732963832740,0.55,3653.6,3653.5,0.05860929]
[1732963832971,0.55,3653.6,3653.3,2.73725]
[1732963833127,0.55,3653.6,3653.5,0.05861091]
[1732963833326,8.98,3653.7,3653.6,2.73702]
[1732963833558,8.98,3653.7,3653.6,2.79560691]
[1732963834714,9.53,3653.7,3653.6,2.79560691]
[1732963835104,0.55,3653.7,3653.6,2.79560691]
[1732963835879,1.3786,3653.7,3653.6,0.05858691]
[1732963836121,1.3786,3653.7,3653.2,0.03]
[1732963836122,1.51646,3653.7,3653.2,0.03]
[1732963836287,0.55,3653.6,3653.3,0.05668218]
[1732963836487,0.55,3653.6,3653.2,0.03]
[1732963836803,0.55,3653.6,3653.3,0.05668218]
[1732963837306,0.55,3653.6,3653.2,0.03]
[1732963837484,0.55,3653.6,3653.3,0.05674387]
[1732963837929,3.28702,3653.6,3653.3,0.05674387]
[1732963838078,0.55,3653.6,3653.2,0.03]
[1732963838309,0.55,3653.6,3653.3,0.05677635]
[1732963839253,0.55,3653.6,3653.3,2.79402635]
[1732963839582,0.55,3653.6,3653.3,0.05677635]
[1732963840454,0.55,3653.6,3653.3,2.79401635]
[1732963840661,9.8086,3654.1,3653.5,2.7371]
[1732963840859,9.8086,3654.1,3653.5,2.73703]
[1732963841157,9.8086,3654.1,3653.6,2.79384235]
[1732963841459,0.8286,3654.1,3653.7,2.73694]
[1732963841956,9.8086,3654.5,3654.0,2.73666]
[1732963842144,9.8086,3654.5,3654.1,0.05668826]
[1732963842145,0.8286,3654.5,3654.1,0.05668826]
[1732963842456,0.8286,3654.5,3653.2,2.76732]
[1732963842759,8.98,3654.8,3653.3,3.013922]
[1732963842921,2.73626,3654.7,3653.9,2.73678]
[1732963843124,2.73626,3654.7,3654.0,2.73671]
[1732963843369,11.71619,3654.8,3654.1,2.79328442]
[1732963843652,8.98,3654.8,3654.1,2.79328442]
[1732963843863,8.98,3654.8,3654.3,2.73649]
[1732963844156,8.98,3654.8,3654.4,0.0565416]